bitfinex-derivatives/quotes_SOLF0:USTF0_20241212
["timestamp","ask_amount","ask_price","bid_price","bid_amount"]
[1734000647871,2.1736,229.96,229.91,5.16561674]
[1734000648472,2.1736,229.96,229.92,2.1738]
[1734000648870,8.22363825,229.98,229.86,3.6671]
[1734000649071,2.1736,229.95,229.91,2.1739]
[1734000651477,8.22363825,229.98,229.9,8.22363825]
[1734000651776,8.22363825,229.96,229.89,2.1741]
[1734000651976,2.1737,229.94,229.89,2.1741]
[1734000652278,8.22363825,229.96,229.89,2.1741]
[1734000653784,2.1739,229.92,229.89,2.1741]
[1734000653976,8.22363825,229.94,229.88,8.22363825]
[1734000654281,2.174,229.91,229.88,8.22363825]
[1734000654584,2.04,229.93,229.88,8.22363825]
[1734000654881,2.1739,229.92,229.89,2.1741]
[1734000655382,2.04,229.93,229.9,2.174]
[1734000655578,2.04,229.97,229.9,8.22363825]
[1734000656484,2.1736,229.96,229.92,2.1738]
[1734000656783,2.04,229.97,229.92,2.1738]
[1734000657579,2.1736,229.95,229.92,2.1738]
[1734000657780,2.04,229.98,229.93,2.1738]
[1734000659581,2.1735,229.96,229.93,2.1738]
[1734000659976,2.1735,229.96,229.92,8.22363825]
[1734000659977,2.1735,229.96,229.92,10.39743825]
[1734000661374,2.1735,229.96,229.93,2.1737]
[1734000661681,8.22363825,229.97,229.9,8.22363825]
[1734000661879,8.22363825,229.97,229.91,2.1739]
[1734000662073,2.1737,229.95,229.91,2.1739]
[1734000662677,8.22363825,229.97,229.91,2.1739]
[1734000662875,8.22363825,229.97,229.9,2.174]
[1734000663782,2.1738,229.93,229.9,2.174]
[1734000665183,2.1737,229.94,229.91,2.174]
[1734000665985,2.04,229.98,229.91,8.22363825]
[1734000666181,2.1735,229.96,229.91,8.22363825]
[1734000666682,2.1736,229.95,229.92,2.1738]
[1734000667583,2.1737,229.94,229.91,10.39753825]
[1734000668383,2.1737,229.94,229.92,2.1739]
[1734000669687,2.04,229.98,229.89,5.23929094]
[1734000669987,8.22363825,229.95,229.86,9.85073825]
[1734000670791,2.174,229.91,229.87,2.1742]
[1734000670991,2.174,229.91,229.86,9.85073825]
[1734000671686,2.174,229.91,229.88,2.1742]
[1734000672087,2.1741,229.9,229.88,2.1742]
[1734000672296,2.1741,229.9,229.87,10.39793825]
[1734000673391,2.1742,229.89,229.87,10.39793825]
[1734000675593,2.174,229.91,229.87,8.22363825]
[1734000675786,2.04,229.96,229.89,8.22363825]
[1734000675990,2.04,229.97,229.92,8.22363825]
[1734000676183,2.1734,229.98,229.94,10.39723825]
[1734000676692,2.04,230.0,229.94,10.39723825]
[1734000677788,0.04,230.0,229.94,10.39723825]
[1734000678089,2.1734,229.98,229.94,10.39723825]
[1734000678692,1.5577,230.05,229.96,8.22363825]
[1734000678887,10.26363825,230.04,229.96,8.22363825]
[1734000679100,178.79736743,230.09,229.98,8.22363825]
[1734000679288,8.22363825,230.07,229.98,8.22363825]
[1734000679792,1.7226,230.09,229.99,8.22363825]
[1734000679986,1.7226,230.09,229.94,1.7204]
[1734000679987,2.04,230.08,230.01,8.22363825]
[1734000680187,2.1725,230.06,230.01,8.22363825]
[1734000680390,2.04,230.08,230.01,8.22363825]
[1734000680892,8.22363825,230.1,230.03,8.22363825]
[1734000681093,2.04,230.09,230.03,8.22363825]
[1734000681398,2.1725,230.06,230.03,8.22363825]
[1734000681591,2.04,230.09,230.03,10.39643825]
[1734000681792,0.04,230.09,230.03,10.39643825]
[1734000682597,2.1725,230.07,230.05,8.22363825]
[1734000682895,0.04,230.09,230.05,8.22363825]
[1734000683096,0.30952,230.15,230.05,8.22363825]
[1734000683097,5.59476037,230.15,230.05,8.22363825]
[1734000683293,5.59476037,230.15,230.03,8.22363825]
[1734000683294,8.22363825,230.09,230.03,8.22363825]
[1734000683499,8.22363825,230.09,230.01,8.22363825]
[1734000683716,2.04,230.08,230.01,8.22363825]
[1734000684698,2.04,230.08,230.03,8.22363825]
[1734000685002,2.04,230.08,230.05,8.22363825]
[1734000685698,4.2124,230.08,230.05,8.22363825]
[1734000688303,2.1725,230.07,230.03,8.22363825]
[1734000688602,2.1725,230.07,230.02,2.1729]
[1734000688994,2.1725,230.07,230.03,8.22363825]
[1734000689401,2.1725,230.06,230.02,2.1729]
[1734000689601,2.1725,230.06,230.03,10.39643825]
[1734000691304,2.04,230.08,230.03,8.22363825]
[1734000692407,2.1725,230.07,230.03,10.39643825]
[1734000692797,2.04,230.08,230.03,8.22363825]
[1734000693000,8.22363825,230.07,229.97,5.15845721]
[1734000693306,2.04,230.08,229.97,5.15845721]
[1734000693307,8.22363825,230.05,229.97,13.38209546]
[1734000693499,10.26363825,230.08,230.01,8.22363825]
[1734000693903,2.1729,230.03,230.01,8.22363825]
[1734000694910,2.173,230.02,229.99,8.22363825]
[1734000695103,8.22363825,230.06,229.99,8.22363825]
[1734000696309,2.173,230.02,229.98,2.1733]
[1734000696605,8.22363825,230.04,229.97,8.22363825]
[1734000696813,2.1732,229.99,229.95,11.52563825]
[1734000697009,8.22363825,230.02,229.94,9.94403825]
[1734000697210,8.22363825,230.02,229.95,2.1735]
[1734000697412,2.1732,229.99,229.95,2.1735]
[1734000698014,2.1732,229.99,229.96,8.22363825]
[1734000698519,1.7048,230.07,229.98,8.22363825]
[1734000698520,2.04,230.04,229.98,8.22363825]
[1734000698818,2.04,230.04,230.0,8.22363825]
[1734000699416,2.173,230.01,230.0,8.22363825]
[1734000701118,2.173,230.02,230.0,8.22363825]
[1734000702010,2.173,230.01,230.0,8.22363825]
[1734000702212,2.173,230.01,229.98,8.22363825]
[1734000702415,2.1732,229.99,229.96,8.22363825]
[1734000704921,8.22363825,230.03,229.94,1.7204]
[1734000705117,8.22363825,229.99,229.87,1.6292]
[1734000705418,10.26363825,229.99,229.9,8.22363825]
[1734000705618,2.1735,229.97,229.9,10.39763825]
[1734000705834,10.26363825,229.99,229.9,10.39763825]
[1734000706619,10.26363825,229.99,229.92,8.22363825]
[1734000707028,2.04,229.99,229.94,10.39723825]
[1734000707328,2.04,229.99,229.96,8.22363825]
[1734000708427,4.2133,229.99,229.96,8.22363825]
[1734000708727,2.04,229.99,229.96,8.22363825]
[1734000709531,2.1733,229.98,229.96,8.22363825]
[1734000709830,2.1733,229.98,229.94,10.39733825]
[1734000710725,2.1733,229.98,229.95,2.1736]
[1734000711430,2.1733,229.98,229.96,8.22363825]
[1734000716428,2.1733,229.98,229.95,8.22363825]
[1734000716630,2.1733,229.98,229.95,10.39723825]
[1734000717136,4.2132,229.99,229.97,8.22363825]
[1734000718735,2.1732,229.99,229.97,8.22363825]
[1734000721537,8.22363825,230.02,229.95,8.22363825]
[1734000722437,8.22363825,230.0,229.87,1.6292]
[1734000722637,8.22363825,229.98,229.9,8.22363825]
[1734000722838,10.24363825,229.98,229.9,8.22363825]
[1734000723637,2.1738,229.93,229.9,10.39763825]
[1734000726040,184.72946743,230.06,229.93,2.1738]
[1734000726242,8.22363825,230.02,229.94,8.22363825]
[1734000726640,2.1735,229.96,229.94,8.22363825]
[1734000727635,2.1733,229.99,229.94,8.22363825]
[1734000727840,2.1733,229.99,229.97,8.22363825]
[1734000728043,2.02,230.03,229.97,8.22363825]
[1734000728845,2.1731,230.0,229.97,8.22363825]
[1734000729041,2.02,230.03,229.97,8.22363825]
[1734000729241,8.22363825,230.02,229.95,8.22363825]
[1734000731343,2.1731,230.0,229.95,8.22363825]
[1734000731645,2.02,230.03,229.97,8.22363825]
[1734000732050,2.1733,229.99,229.97,8.22363825]
[1734000732544,2.02,230.02,229.97,8.22363825]
[1734000732744,2.1733,229.98,229.97,8.22363825]
[1734000733948,2.1733,229.98,229.96,8.22363825]
[1734000734141,2.1734,229.97,229.96,8.22363825]
[1734000734348,10.24363825,230.02,229.9,2.02]
[1734000734547,8.22363825,230.0,229.93,8.22363825]
[1734000735749,2.1736,229.95,229.93,8.22363825]
[1734000738049,8.22363825,230.0,229.87,1.6292]
[1734000738252,2.02,230.02,229.9,8.22363825]
[1734000738253,8.22363825,229.98,229.9,8.22363825]
[1734000738552,2.02,229.97,229.9,8.22363825]
[1734000738853,2.02,229.97,229.87,3.6492]
[1734000738854,8.22363825,229.96,229.88,8.22363825]
[1734000739253,2.174,229.9,229.88,8.22363825]
[1734000745460,8.22363825,229.9,229.77,3.7061]
[1734000745654,8.22363825,229.88,229.82,8.22363825]
[1734000746259,2.1747,229.84,229.82,8.22363825]
[1734000747363,2.1747,229.83,229.82,8.22363825]
[1734000747563,8.22363825,229.88,229.82,8.22363825]
[1734000748263,2.1746,229.84,229.82,8.22363825]
[1734000750461,8.22363825,229.84,229.76,3.3099]
[1734000750665,8.22363825,229.84,229.77,8.22363825]
[1734000750961,2.1751,229.79,229.76,11.53353825]
[1734000754858,2.1749,229.82,229.78,8.22363825]
[1734000755455,2.1749,229.82,229.78,10.39883825]
[1734000758261,8.22363825,229.8,229.72,8.22363825]
[1734000758457,10.24363825,229.8,229.72,8.22363825]
[1734000759163,8.22363825,229.78,229.72,8.22363825]
[1734000759561,2.1755,229.75,229.72,8.22363825]
[1734000760261,2.1756,229.74,229.69,8.22363825]
[1734000760563,8.22363825,229.76,229.69,8.22363825]
[1734000761061,2.02,229.8,229.73,8.22363825]
[1734000761864,2.02,229.83,229.7,2.02]
[1734000762064,2.02,229.83,229.81,8.22363825]
[1734000762266,2.02,229.83,229.79,8.22363825]
[1734000763066,2.1749,229.82,229.79,8.22363825]
[1734000763268,2.02,229.83,229.79,8.22363825]
[1734000764364,2.1749,229.82,229.78,2.1751]
[1734000764568,2.02,229.83,229.78,10.39873825]
[1734000765672,2.02,229.83,229.78,8.22363825]
[1734000765875,2.02,229.83,229.79,2.1751]
[1734000766275,4.1948,229.83,229.79,2.1751]
[1734000768074,4.1948,229.83,229.79,10.39873825]
[1734000768275,2.1748,229.82,229.79,10.39873825]
[1734000769879,4.1947,229.83,229.79,10.39873825]
[1734000772376,2.1748,229.82,229.79,10.39873825]
[1734000772979,4.1948,229.83,229.79,10.39873825]
[1734000773575,2.1748,229.82,229.79,10.39873825]
[1734000777970,2.02,229.83,229.79,8.22363825]
[1734000778172,2.1745,229.85,229.81,10.39843825]
[1734000778376,2.02,229.87,229.81,8.22363825]
[1734000778572,2.02,229.87,229.79,8.22363825]
[1734000778770,2.1748,229.83,229.79,10.39873825]
[1734000781178,8.22363825,229.85,229.76,2.02]
[1734000781371,8.22363825,229.85,229.76,12.41893825]
[1734000781580,8.22363825,229.85,229.76,10.39893825]
[1734000781882,2.1751,229.8,229.76,8.22363825]
[1734000782079,2.1751,229.8,229.77,2.1752]
[1734000784179,8.22363825,229.83,229.71,4.8079]
[1734000784382,5.09403086,229.9,229.71,11.45083825]
[1734000784383,8.22363825,229.79,229.71,11.45083825]
[1734000784587,2.1757,229.73,229.71,1.6007]
[1734000784788,8.22363825,229.77,229.69,2.1759]
[1734000785480,2.1757,229.73,229.7,2.1759]
[1734000785784,8.22363825,229.75,229.65,2.02]
[1734000785986,2.02,229.74,229.68,2.1761]
[1734000786279,2.02,229.74,229.56,15.22020101]
[1734000786280,2.1763,229.66,229.56,15.22020101]
[1734000786582,10.24363825,229.68,229.61,2.1768]
[1734000786781,2.02,229.67,229.61,2.1768]
[1734000787085,2.1764,229.66,229.61,2.1768]
[1734000787281,2.1764,229.66,229.6,8.22363825]
[1734000787481,2.1764,229.66,229.62,2.1767]
[1734000788088,2.1764,229.66,229.62,10.40033825]
[1734000788287,2.1764,229.66,229.62,8.22363825]
[1734000789181,2.1764,229.66,229.61,2.1767]
[1734000789490,2.1765,229.65,229.61,2.1767]
[1734000789887,2.1765,229.65,229.6,8.22363825]
[1734000790185,2.02,229.67,229.6,8.22363825]
[1734000790387,2.1765,229.64,229.6,8.22363825]
[1734000790691,2.02,229.67,229.61,2.1767]
[1734000790988,2.1763,229.66,229.61,2.1767]
[1734000791683,2.1763,229.66,229.59,5.16804738]
[1734000791885,10.24363825,229.67,229.59,13.39168563]
[1734000792082,2.1764,229.65,229.59,13.39168563]
[1734000793686,2.1764,229.65,229.61,2.1768]
[1734000794385,2.1766,229.63,229.57,8.22363825]
[1734000795287,2.1766,229.63,229.59,2.177]
[1734000796190,2.02,229.62,229.54,6.83977666]
[1734000796380,2.02,229.62,229.54,8.22363825]
[1734000796586,8.22363825,229.61,229.54,8.22363825]
[1734000796791,2.1771,229.59,229.54,8.22363825]
[1734000797186,2.02,229.62,229.54,8.22363825]
[1734000797385,8.22363825,229.67,229.58,8.22363825]
[1734000797590,2.02,229.66,229.62,8.22363825]
[1734000797886,2.02,229.66,229.6,8.22363825]
[1734000798786,8.22363825,229.64,229.56,1.6171]
[1734000799090,8.22363825,229.64,229.56,9.84073825]
[1734000799485,2.1771,229.59,229.55,2.1773]
[1734000799684,2.02,229.6,229.55,2.1773]
[1734000800192,4.197,229.6,229.55,2.1773]
[1734000800486,1.6053,229.73,229.58,8.22363825]
[1734000800696,2.1765,229.65,229.61,2.1767]
[1734000800888,8.22363825,229.67,229.6,8.22363825]
[1734000801095,2.02,229.65,229.58,10.40063825]
[1734000801386,2.1766,229.63,229.58,10.40063825]
[1734000801787,2.1766,229.63,229.59,2.177]
[1734000801984,2.1767,229.62,229.58,8.22363825]
[1734000802186,8.22363825,229.63,229.56,8.22363825]
[1734000802791,8.22363825,229.63,229.55,8.22363825]
[1734000803290,2.177,229.6,229.56,2.1773]
[1734000803595,2.02,229.6,229.57,8.22363825]
[1734000804391,2.02,229.6,229.58,2.177]
[1734000804592,2.1768,229.62,229.58,2.177]
[1734000804894,2.02,229.7,229.61,8.22363825]
[1734000805088,2.02,229.71,229.64,8.22363825]
[1734000805294,358.49813486,229.88,229.7,8.22363825]
[1734000805491,2.02,229.8,229.72,8.22363825]
[1734000805691,8.22363825,229.77,229.7,8.22363825]
[1734000805891,8.22363825,229.77,229.65,1.5645]
[1734000805892,2.1757,229.73,229.68,2.1761]
[1734000807798,2.1758,229.72,229.68,2.1761]
[1734000807990,2.1758,229.72,229.65,3.2471]
[1734000807991,2.1758,229.72,229.67,2.1762]
[1734000809501,2.1758,229.72,229.66,5.29416649]
[1734000809702,2.02,229.75,229.68,2.1761]
[1734000810002,2.02,229.75,229.65,1.5645]
[1734000811202,2.02,229.75,229.65,6.71052438]
[1734000811600,2.1757,229.73,229.68,2.1761]
[1734000813499,2.1758,229.72,229.68,2.1761]
[1734000817705,4.1955,229.75,229.71,2.1758]
[1734000817904,2.02,229.75,229.68,12.90419112]
[1734000818617,4.1956,229.75,229.7,2.1759]
[1734000819109,2.02,229.75,229.7,2.1759]
[1734000819305,2.1756,229.74,229.7,2.1759]
[1734000820704,2.02,229.75,229.65,6.71052438]
[1734000821103,2.1761,229.69,229.65,3.7408]
[1734000821312,2.1761,229.69,229.65,2.1763]
[1734000821704,2.1759,229.71,229.67,2.1762]
[1734000822306,2.1759,229.71,229.63,5.24855559]
[1734000822612,2.1759,229.71,229.68,2.1761]
[1734000826013,2.1758,229.72,229.69,2.176]
[1734000826208,12.90419112,229.79,229.65,12.90419112]
[1734000826509,2.02,229.78,229.65,12.90419112]
[1734000826815,2.1756,229.75,229.71,2.1758]
[1734000827310,2.1756,229.74,229.71,2.1758]
[1734000827817,10.27639912,229.78,229.72,2.1757]
[1734000828510,2.1754,229.76,229.72,2.1757]
[1734000828716,10.27639912,229.78,229.72,2.1757]
[1734000829314,2.1755,229.75,229.72,2.1757]
[1734000830015,2.1755,229.75,229.71,10.43219912]
[1734000832911,2.1753,229.78,229.75,2.1755]
[1734000833112,2.02,229.81,229.76,8.25639912]
[1734000833519,2.1752,229.79,229.76,8.25639912]
[1734000834215,2.175,229.81,229.77,2.1753]
[1734000834415,2.02,229.82,229.77,2.1753]
[1734000834608,2.02,229.82,229.76,8.25639912]
[1734000834809,2.02,229.82,229.78,2.1752]
[1734000835414,2.1749,229.81,229.77,2.1753]
[1734000836611,2.02,229.82,229.78,10.43159912]
[1734000836914,4.1948,229.82,229.78,8.25639912]
[1734000837214,3.28942,229.87,229.8,8.25639912]
[1734000837422,3.28942,229.87,229.82,8.25639912]
[1734000837614,1.11502,229.87,229.82,10.43109912]
[1734000837819,3.28932,229.87,229.82,8.25639912]
[1734000838315,2.1744,229.86,229.82,8.25639912]
[1734000838816,2.1745,229.85,229.82,8.25639912]
[1734000840019,1.11502,229.87,229.82,8.25639912]
[1734000840216,1.11502,229.87,229.84,8.25639912]
[1734000841819,3.28942,229.87,229.84,8.25639912]
[1734000842722,2.1744,229.87,229.84,8.25639912]
[1734000843618,2.1744,229.87,229.83,2.1747]
[1734000844624,8.25639912,229.89,229.79,3.5874]
[1734000844818,8.25639912,229.87,229.79,1.5674]
[1734000845026,8.25639912,229.87,229.76,9.92559912]
[1734000845027,8.25639912,229.83,229.76,9.92559912]
[1734000845220,2.175,229.81,229.77,2.1752]
[1734000845416,8.25639912,229.83,229.76,9.92559912]
[1734000845721,8.25639912,229.83,229.76,8.25639912]
[1734000845919,2.1751,229.8,229.76,10.43179912]
[1734000846124,8.25639912,229.83,229.76,10.43179912]
[1734000846325,2.1753,229.77,229.73,2.1756]
[1734000846530,8.25639912,229.81,229.69,1.6415]
[1734000846531,8.25639912,229.79,229.7,2.02]
[1734000846720,8.25639912,229.79,229.7,10.27639912]
[1734000847125,2.1756,229.74,229.7,12.45229912]
[1734000847622,8.25639912,229.77,229.7,12.45229912]
[1734000847823,8.25639912,229.77,229.7,8.25639912]
[1734000849321,2.1757,229.73,229.7,8.25639912]
[1734000849525,8.25639912,229.75,229.68,1.7036]
[1734000849728,8.25639912,229.75,229.68,9.95999912]
[1734000850526,2.02,229.76,229.68,9.95999912]
[1734000850919,2.1756,229.74,229.68,9.95999912]
[1734000851126,2.1756,229.74,229.69,2.176]
[1734000852029,2.02,229.76,229.69,2.176]
[1734000852330,2.1757,229.73,229.69,2.176]
[1734000852828,2.1756,229.74,229.71,2.1758]
[1734000853021,8.25639912,229.77,229.71,2.1758]
[1734000853022,10.27639912,229.79,229.72,8.25639912]
[1734000853336,2.1747,229.84,229.79,2.175]
[1734000853630,8.25639912,229.88,229.81,8.25639912]
[1734000854034,2.1746,229.85,229.81,8.25639912]
[1734000854231,8.25639912,229.88,229.81,8.25639912]
[1734000854424,10.27639912,229.9,229.83,8.25639912]
[1734000854728,2.1744,229.87,229.83,8.25639912]
[1734000855631,2.1743,229.88,229.84,2.1746]
[1734000856235,2.1743,229.88,229.83,8.25639912]
[1734000856430,2.1743,229.88,229.83,10.43109912]
[1734000857128,2.1743,229.88,229.83,2.1747]
[1734000857427,2.1743,229.88,229.8,12.8844622]
[1734000857625,2.1742,229.89,229.84,2.1746]
[1734000858728,2.02,229.91,229.84,2.1746]
[1734000858930,8.66521125,229.92,229.8,12.8844622]
[1734000859126,2.02,229.92,229.83,12.8844622]
[1734000859330,2.02,229.92,229.84,2.02]
[1734000859630,1.698,229.95,229.84,2.02]
[1734000859631,3.718,229.95,229.84,2.02]
[1734000859834,1.698,229.95,229.84,2.02]
[1734000860035,10.36377652,229.95,229.84,2.02]
[1734000860630,1.698,229.95,229.84,2.02]
[1734000861331,2.174,229.92,229.87,2.1743]
[1734000861931,76.96506403,229.96,229.84,2.02]
[1734000861932,76.96506403,229.96,229.89,12.8844622]
[1734000862132,1.00137,229.99,229.89,14.9044622]
[1734000862631,1.00137,229.99,229.89,2.02]
[1734000863835,2.1737,229.94,229.89,4.1941]
[1734000864032,1.00137,229.99,229.85,12.8844622]
[1734000864238,2.1741,229.9,229.86,2.02]
[1734000864435,2.1741,229.9,229.83,2.02]
[1734000865039,2.1741,229.9,229.85,2.1745]
[1734000865436,2.1741,229.9,229.83,2.02]
[1734000865734,2.1741,229.9,229.86,2.1744]
[1734000866136,2.02,229.94,229.82,5.16473774]
[1734000866341,2.02,229.94,229.8,14.9044622]
[1734000866536,3.6969,229.94,229.8,14.9044622]
[1734000866738,2.1745,229.86,229.81,2.1749]
[1734000867239,2.1745,229.85,229.81,2.1749]
[1734000867941,2.02,229.89,229.79,1.713]
[1734000868140,2.02,229.88,229.78,5.2891]
[1734000869337,2.1749,229.82,229.78,3.2691]
[1734000871744,2.02,229.88,229.79,2.1751]
[1734000872139,2.02,229.88,229.78,1.6682]
[1734000873244,2.1747,229.84,229.79,2.1751]
[1734000873745,2.02,229.88,229.79,2.1751]
[1734000874049,2.02,229.93,229.83,12.8844622]
[1734000874741,1.6769,229.94,229.83,12.8844622]
[1734000874947,2.02,229.93,229.83,12.8844622]
[1734000875149,1.6769,229.94,229.83,12.8844622]
[1734000875339,3.6969,229.94,229.83,12.8844622]
[1734000876647,2.1741,229.9,229.86,2.1744]
[1734000876847,2.02,229.94,229.83,16.2250622]
[1734000877843,2.1739,229.92,229.88,2.1742]
[1734000879651,4.1937,229.94,229.9,2.174]
[1734000880145,1.00137,229.99,229.89,12.8844622]
[1734000880343,1.00137,229.99,229.92,12.8844622]
[1734000881244,1.00137,229.99,229.95,8.23818668]
[1734000881445,2.1733,229.98,229.95,8.23818668]
[1734000883251,2.1733,229.98,229.93,2.1738]
[1734000884346,2.1736,229.95,229.92,12.87220258]
[1734000884550,2.1736,229.95,229.91,2.1739]
[1734000885949,2.1737,229.94,229.89,15.04630258]
[1734000886151,1.00137,229.99,229.89,2.1741]
[1734000887252,1.00137,229.99,229.87,1.6572]
[1734000887655,9.65729881,229.99,229.87,1.6572]
[1734000887852,11.25519881,229.99,229.87,1.6572]
[1734000888155,2.174,229.91,229.87,1.6572]
[1734000889456,2.02,229.95,229.9,12.87220258]
[1734000889655,1.00137,229.99,229.9,12.87220258]
[1734000889849,2.1734,229.98,229.94,2.1736]
[1734000890055,1.00137,229.99,229.93,12.87220258]
[1734000891455,2.1736,229.96,229.93,12.87220258]
[1734000891656,1.00137,229.99,229.93,15.04590258]
[1734000891850,2.1734,229.98,229.93,15.04590258]
[1734000892258,1.00137,229.99,229.93,15.04590258]
[1734000893159,2.1735,229.97,229.93,15.04590258]
[1734000898863,2.02,230.02,229.94,2.1736]
[1734000898864,2.1733,229.98,229.94,2.1736]
[1734000900361,5.18426108,230.06,229.96,12.87220258]
[1734000900565,5.18426108,230.06,229.99,12.87220258]
[1734000900967,2.02,230.08,229.99,12.87220258]
[1734000901667,2.1727,230.05,230.01,2.1729]
[1734000902171,2.1728,230.04,230.0,2.1731]
[1734000902966,2.02,230.08,230.0,2.1731]
[1734000903265,2.1729,230.03,230.02,8.23333692]
[1734000903973,2.1727,230.04,230.02,8.23333692]
[1734000908168,2.1728,230.03,230.02,8.23333692]
[1734000908376,8.23333692,230.04,229.98,8.23333692]
[1734000908572,8.23333692,230.04,229.96,8.23333692]
[1734000910071,2.1734,229.98,229.96,8.23333692]
[1734000911176,2.1734,229.97,229.96,8.23333692]
[1734000913473,2.02,230.03,229.96,8.23333692]
[1734000913670,2.1733,229.98,229.95,2.1736]
[1734000913874,2.02,230.05,229.94,5.11537514]
[1734000914272,2.02,230.05,229.97,2.1733]
[1734000914872,2.02,230.05,230.02,8.23333692]
[1734000915473,2.1728,230.03,230.02,8.23333692]
[1734000919281,2.02,230.05,229.94,5.11537514]
[1734000919483,2.02,230.05,229.97,8.23333692]
[1734000919879,2.1733,229.98,229.97,8.23333692]
[1734000921083,8.23333692,230.04,229.92,5.2888]
[1734000921285,2.1735,229.97,229.93,2.1738]
[1734000921584,2.1735,229.97,229.95,8.23333692]
[1734000922287,8.23333692,230.04,229.95,8.23333692]
[1734000922491,8.23333692,230.04,229.98,8.23333692]
[1734000922892,2.02,230.05,229.98,8.23333692]
[1734000923086,10.70313357,230.05,229.98,8.23333692]
[1734000923482,8.23333692,230.04,229.96,8.23333692]
[1734000923881,8.23333692,230.02,229.94,8.23333692]
[1734000924084,2.1735,229.96,229.94,8.23333692]
[1734000924990,2.1734,229.97,229.94,8.23333692]
[1734000925190,2.1734,229.97,229.96,8.23333692]
[1734000925487,8.23333692,230.04,229.96,8.23333692]
[1734000925792,8.23333692,230.04,229.93,5.34378123]
[1734000925793,8.23333692,230.04,229.98,8.23333692]
[1734000926198,2.02,230.05,229.98,8.23333692]
[1734000926589,2.1733,229.99,229.98,8.23333692]
[1734000930391,2.1728,230.03,229.98,8.23333692]
[1734000930692,2.02,230.05,230.0,8.23333692]
[1734000931691,2.1731,230.01,230.0,8.23333692]
[1734000932891,2.1731,230.01,229.93,5.34378123]
[1734000932892,8.23333692,230.03,229.93,5.34378123]
[1734000933096,8.23333692,230.03,229.95,8.23333692]
[1734000933494,2.1736,229.96,229.95,8.23333692]
[1734000935297,2.02,230.0,229.95,8.23333692]
[1734000935494,2.1733,229.98,229.97,8.23333692]
[1734000936391,2.02,230.0,229.93,5.3299825]
[1734000936696,2.1735,229.96,229.95,8.23333692]
[1734000940602,2.1735,229.96,229.91,2.02]
[1734000940603,2.1737,229.94,229.91,2.1739]
[1734000940800,2.1737,229.94,229.93,8.23333692]
[1734000940999,2.1737,229.94,229.89,2.02]
[1734000941194,2.1737,229.94,229.93,8.23333692]
[1734000942004,2.1738,229.93,229.91,7.3336307]
[1734000942196,2.1738,229.93,229.92,8.23333692]
[1734000942896,2.1741,229.89,229.88,1.722]
[1734000943204,10.25333692,229.95,229.88,8.23333692]
[1734000943405,2.02,229.94,229.88,8.23333692]
[1734000944604,2.1741,229.89,229.88,8.23333692]
[1734000947107,2.02,229.94,229.88,8.23333692]
[1734000947310,2.02,229.94,229.91,8.23333692]
[1734000947902,2.02,229.94,229.86,57.40537782]
[1734000947903,1.5621,229.97,229.93,8.23333692]
[1734000948102,2.02,229.97,229.93,8.23333692]
[1734000949005,2.1736,229.95,229.93,8.23333692]
[1734000960518,2.02,230.0,229.93,8.23333692]
[1734000960719,8.23333692,229.98,229.89,2.1741]
[1734000960925,2.02,230.0,229.88,8.23333692]
[1734000960926,8.23333692,229.96,229.88,8.23333692]
[1734000961127,0.97681,230.01,229.86,55.38537782]
[1734000961128,2.1743,229.88,229.86,63.61871474]
[1734000962120,2.1743,229.88,229.86,8.23333692]
[1734000963227,2.1743,229.87,229.86,8.23333692]
[1734000963825,2.1742,229.88,229.86,8.23333692]
[1734000966928,2.1742,229.88,229.86,10.40773692]
[1734000967130,2.02,229.96,229.86,8.23333692]
[1734000967325,2.02,229.96,229.92,8.23333692]
[1734000967829,2.1738,229.93,229.92,8.23333692]
[1734000969137,2.174,229.91,229.9,8.23333692]
[1734000969327,8.23333692,229.95,229.84,5.291547]
[1734000969529,8.23333692,229.93,229.85,8.23333692]